fUSD/lending_fUSD_20250823
["ID","MTS","AMOUNT","RATE_DAILY","PERIOD"]
[380980502,1755915093531,-400.0,0.00016164,2]
[380980503,1755915093541,-451.43,0.00016164,2]
[380980504,1755915093551,-547.24,0.00016164,2]
[380980505,1755915093562,-361.37810305,0.00016164,2]
[380980506,1755915093572,-552.9,0.00016164,2]
[380980507,1755915093582,-640.16,0.00016164,2]
[380980508,1755915093592,-418.59,0.00016164,2]
[380980509,1755915093603,-402.86,0.00016164,2]
[380980510,1755915093613,-400.0,0.00016164,2]
[380980511,1755915093622,-508.32,0.00016164,2]
[380980512,1755915093632,-400.0,0.00016164,2]
[380980513,1755915093642,-400.0,0.00016164,2]
[380980514,1755915093652,-400.0,0.00016164,2]
[380980515,1755915093662,-400.0,0.00016164,2]
[380980516,1755915093672,-400.0,0.00016164,2]
[380980517,1755915093682,-791.97,0.00016164,2]
[380980518,1755915093692,-445.08762728,0.00016164,2]
[380980519,1755915093702,-400.0,0.00016164,2]
[380980520,1755915093712,-400.0,0.00016164,2]
[380980521,1755915093722,-400.0,0.00016164,2]
[380980522,1755915093731,-726.86,0.00016164,2]
[380980523,1755915093741,-400.0,0.00016164,2]
[380980524,1755915093752,-160.09339241,0.00016164,2]
[380980525,1755915093761,-537.36709216,0.00016164,2]
[380980526,1755915093772,-400.0,0.00016164,2]
[380980527,1755915093782,-400.0,0.00016164,2]
[380980528,1755915093793,-400.0,0.00016164,2]
[380980529,1755915093803,-325.74020893,0.00016164,2]
[380980530,1755915093812,-400.0,0.00016164,2]
[380980531,1755915093823,-400.0,0.00016164,2]
[380980532,1755915093834,-400.0,0.00016164,2]
[380980533,1755915093844,-400.0,0.00016164,2]
[380980534,1755915093855,-400.0,0.00016164,2]
[380980535,1755915093865,-2421.44,0.00016164,2]
[380980536,1755915093875,-301.88180022,0.00016164,2]
[380980537,1755915093885,-741.62,0.00016164,2]
[380980538,1755915093895,-400.0,0.00016164,2]
[380980539,1755915093905,-400.0,0.00016164,2]
[380980540,1755915093915,-158.18901916,0.00016164,2]
[380980541,1755915093925,-400.0,0.00016164,2]
[380980542,1755915093935,-440.84445156,0.00016164,2]
[380980543,1755915093945,-420.62,0.00016164,2]
[380980544,1755915093955,-593.77,0.00016164,2]
[380980545,1755915093964,-400.0,0.00016164,2]
[380980546,1755915093974,-400.0,0.00016164,2]
[380980547,1755915093984,-400.0,0.00016164,2]
[380980548,1755915093994,-986.68,0.00016164,2]
[380980549,1755915094004,-400.0,0.00016164,2]
[380980550,1755915094014,-400.0,0.00016164,2]
[380980551,1755915094023,-400.0,0.00016164,2]
[380980552,1755915094034,-783.79,0.00016164,2]
[380980553,1755915094044,-400.0,0.00016164,2]
[380980554,1755915094058,-400.0,0.00016164,2]
[380980555,1755915094068,-400.0,0.00016164,2]
[380980556,1755915094078,-699.45,0.00016164,2]
[380980557,1755915094087,-519.29812758,0.00016164,2]
[380980558,1755915094098,-400.0,0.00016164,2]
[380980559,1755915094109,-400.0,0.00016164,2]
[380980560,1755915094120,-400.0,0.00016164,2]
[380980561,1755915094129,-262.58622441,0.00016164,2]
[380980562,1755915094140,-448.31,0.00016164,2]
[380980563,1755915094150,-400.0,0.00016164,2]
[380980564,1755915094167,-563.71,0.00016164,2]
[380980565,1755915094177,-598.32,0.00016164,2]
[380980566,1755915094186,-400.0,0.00016164,2]
[380980567,1755915094195,-400.0,0.00016164,2]
[380980568,1755915094205,-400.0,0.00016164,2]
[380980569,1755915094215,-400.0,0.00016164,2]
[380980570,1755915094299,-400.0,0.00016164,2]
[380980571,1755915094310,-408.72,0.00016164,2]
[380980572,1755915094320,-400.0,0.00016164,2]
[380980573,1755915094329,-441.38,0.00016164,2]
[380980574,1755915094339,-400.0,0.00016164,2]
[380980575,1755915094349,-637.68,0.00016164,2]
[380980576,1755915094359,-216.24,0.00016164,2]
[380980577,1755915094368,-400.0,0.00016164,2]
[380980578,1755915094378,-400.0,0.00016164,2]
[380980579,1755915094388,-400.0,0.00016164,2]
[380980580,1755915094397,-400.0,0.00016164,2]
[380980581,1755915094407,-400.0,0.00016164,2]
[380980582,1755915094417,-400.0,0.00016164,2]
[380980583,1755915094427,-400.0,0.00016164,2]
[380980584,1755915094437,-361.58629208,0.00016164,2]
[380980585,1755915094448,-755.42,0.00016164,2]
[380980586,1755915094458,-400.0,0.00016164,2]
[380980587,1755915094468,-400.0,0.00016164,2]
[380980588,1755915094478,-400.0,0.00016164,2]
[380980589,1755915094488,-400.0,0.00016164,2]
[380980590,1755915094498,-400.0,0.00016164,2]
[380980591,1755915094508,-493.66,0.00016164,2]
[380980592,1755915094527,-489.36,0.00016164,2]
[380980593,1755915094537,-1004.4,0.00016164,2]
[380980594,1755915094546,-400.0,0.00016164,2]
[380980595,1755915094556,-400.0,0.00016164,2]
[380980596,1755915094566,-400.0,0.00016164,2]
[380980597,1755915094584,-400.0,0.00016164,2]
[380980598,1755915094593,-400.0,0.00016164,2]
[380980599,1755915094603,-1453.12,0.00016164,2]
[380980600,1755915094614,-400.0,0.00016164,2]
[380980601,1755915094624,-400.0,0.00016164,2]
[380980602,1755915094634,-1000.0,0.0001617,2]
[380980603,1755915094643,-230.14032579,0.00016184,2]
[380980604,1755915094653,-230.14032579,0.00016189,2]
[380980605,1755915094663,-165.84,0.00016276,2]
[380980606,1755915094673,-3000.0,0.00016322,2]
[380980607,1755915094683,-1769.59166691,0.00016399,2]
[380980608,1755915094693,-158.79918521,0.00016424,2]
[380980609,1755915094703,-160.62213093,0.00016424,2]
[380980610,1755915094713,-1600.0,0.00016431,2]
[380980611,1755915094722,-669.3,0.00016437,2]
[380980612,1755915094732,-400.0,0.00016437,2]
[380980613,1755915094742,-400.0,0.00016437,2]
[380980614,1755915094752,-403.74,0.00016437,2]
[380980615,1755915094761,-1285.05,0.00016437,2]
[380980616,1755915094771,-852.94,0.00016437,2]
[380980617,1755915094781,-425.11553451,0.00016437,2]
[380980618,1755915094791,-400.0,0.00016437,2]
[380980619,1755915094800,-400.0,0.00016437,2]
[380980620,1755915094810,-540.0,0.00016437,2]
[380980621,1755915094820,-488.67,0.00016437,2]
[380980622,1755915094830,-400.0,0.00016437,2]
[380980623,1755915094840,-400.0,0.00016437,2]
[380980624,1755915094850,-400.0,0.00016437,2]
[380980625,1755915094859,-730.86,0.00016437,2]
[380980626,1755915094869,-400.0,0.00016437,2]
[380980627,1755915094878,-423.7,0.00016437,2]
[380980628,1755915094888,-400.0,0.00016437,2]
[380980629,1755915094898,-400.0,0.00016437,2]
[380980630,1755915094908,-400.0,0.00016437,2]
[380980631,1755915094919,-444.50845755,0.00016437,2]
[380980632,1755915094929,-400.0,0.00016438,2]
[380980633,1755915094939,-400.0,0.00016438,2]
[380980634,1755915094948,-608.46,0.00016438,2]
[380980635,1755915094958,-513.5,0.00016438,2]
[380980636,1755915094967,-400.0,0.00016438,2]
[380980637,1755915094976,-400.0,0.00016438,2]
[380980638,1755915094986,-189.36584109,0.00016438,2]
[380980639,1755915094996,-400.0,0.00016438,2]
[380980640,1755915095005,-400.0,0.00016438,2]
[380980641,1755915095015,-429.56,0.00016438,2]
[380980642,1755915095024,-402.63,0.00016438,2]
[380980643,1755915095033,-439.77,0.00016438,2]
[380980644,1755915095043,-400.0,0.00016438,2]
[380980645,1755915095052,-432.83,0.00016438,2]
[380980646,1755915095061,-400.0,0.00016438,2]
[380980647,1755915095071,-526.89,0.00016438,2]
[380980648,1755915095080,-483.75,0.00016438,2]
[380980649,1755915095090,-400.0,0.00016438,2]
[380980650,1755915095100,-400.0,0.00016438,2]
[380980651,1755915095110,-400.0,0.00016438,2]
[380980652,1755915095120,-245.04366996,0.00016438,2]
[380980653,1755915095130,-468.42757316,0.00016438,2]
[380980654,1755915095140,-397.99185302,0.00016438,2]
[380980655,1755915095150,-315.32370106,0.00016438,2]
[380980656,1755915095160,-400.0,0.00016438,2]
[380980657,1755915095170,-400.0,0.00016438,2]
[380980658,1755915095180,-400.0,0.00016438,2]
[380980659,1755915095190,-400.0,0.00016438,2]
[380980660,1755915095199,-378.54271232,0.00016438,2]
[380980661,1755915095209,-539.89,0.00016438,2]
[380980662,1755915095219,-234.28596044,0.00016438,2]
[380980663,1755915095229,-400.0,0.00016438,2]
[380980664,1755915095239,-590.35,0.00016438,2]
[380980665,1755915095249,-437.43263336,0.00016438,2]
[380980666,1755915095259,-400.0,0.00016438,2]
[380980667,1755915095268,-400.0,0.00016438,2]
[380980668,1755915095278,-400.0,0.00016438,2]
[380980669,1755915095290,-576.58,0.00016438,2]
[380980670,1755915095299,-400.0,0.00016438,2]
[380980671,1755915095309,-448.1,0.00016438,2]
[380980672,1755915095318,-400.0,0.00016438,2]
[380980673,1755915095329,-400.0,0.00016438,2]
[380980674,1755915095340,-400.0,0.00016438,2]
[380980675,1755915095350,-1072.65,0.00016438,2]
[380980676,1755915095363,-400.0,0.00016438,2]
[380980677,1755915095376,-1072.65,0.00016438,2]
[380980678,1755915095393,-1072.65,0.00016438,2]
[380980679,1755915095406,-1072.65,0.00016438,2]
[380980680,1755915095419,-1072.65,0.00016438,2]
[380980681,1755915095430,-1072.65,0.00016438,2]
[380980682,1755915095441,-400.0,0.00016438,2]
[380980683,1755915095452,-1072.65,0.00016438,2]
[380980684,1755915095463,-1072.65,0.00016438,2]
[380980685,1755915095474,-1072.65,0.00016438,2]
[380980686,1755915095484,-400.0,0.00016438,2]
[380980687,1755915095495,-1072.65,0.00016438,2]
[380980688,1755915095505,-1072.65,0.00016438,2]
[380980689,1755915095515,-400.0,0.00016438,2]
[380980690,1755915095525,-400.0,0.00016438,2]
[380980691,1755915095536,-400.0,0.00016438,2]
[380980692,1755915095546,-474.35,0.00016438,2]
[380980693,1755915095556,-400.0,0.00016438,2]
[380980694,1755915095567,-559.6,0.00016438,2]
[380980695,1755915095577,-462.9,0.00016438,2]
[380980696,1755915095587,-400.0,0.00016438,2]
[380980697,1755915095600,-510.17,0.00016438,2]
[380980698,1755915095611,-491.3,0.00016438,2]
[380980699,1755915095621,-486.38,0.00016438,2]
[380980700,1755915095631,-400.0,0.00016438,2]
[380980701,1755915095641,-496.22807117,0.00016438,2]
[380980702,1755915095652,-445.55,0.00016438,2]
[380980703,1755915095661,-526.33,0.00016438,2]
[380980704,1755915095671,-667.87,0.00016438,2]
[380980705,1755915095683,-463.55,0.00016438,2]
[380980706,1755915095693,-400.0,0.00016438,2]
[380980707,1755915095703,-400.0,0.00016438,2]
[380980708,1755915095713,-400.0,0.00016438,2]
[380980709,1755915095724,-400.0,0.00016438,2]
[380980710,1755915095734,-400.0,0.00016438,2]
[380980711,1755915095744,-546.73,0.00016438,2]
[380980712,1755915095755,-400.0,0.00016438,2]
[380980713,1755915095764,-400.0,0.00016438,2]
[380980714,1755915095774,-400.0,0.00016438,2]
[380980715,1755915095787,-400.0,0.00016438,2]
[380980716,1755915095797,-400.0,0.00016438,2]
[380980717,1755915095807,-510.71,0.00016438,2]
[380980718,1755915095817,-452.25274738,0.00016438,2]
[380980719,1755915095827,-513.77346464,0.00016438,2]
[380980720,1755915095837,-178.54732,0.00016438,2]
[380980721,1755915095847,-702.84,0.00016438,2]
[380980722,1755915095857,-400.0,0.00016438,2]
[380980723,1755915095867,-821.44,0.00016438,2]
[380980724,1755915095877,-400.0,0.00016438,2]
[380980725,1755915095886,-400.0,0.00016438,2]
[380980726,1755915095896,-400.0,0.00016438,2]
[380980727,1755915095906,-400.0,0.00016438,2]
[380980728,1755915095915,-562.97,0.00016438,2]
[380980729,1755915095926,-400.0,0.00016438,2]
[380980730,1755915095936,-400.0,0.00016438,2]
[380980731,1755915095946,-400.0,0.00016438,2]
[380980732,1755915095955,-400.0,0.00016438,2]
[380980733,1755915095966,-748.43,0.00016438,2]
[380980734,1755915095976,-400.0,0.00016438,2]
[380980735,1755915095986,-479.45,0.00016438,2]
[380980736,1755915095996,-443.83778928,0.00016438,2]
[380980737,1755915096005,-400.83,0.00016438,2]
[380980738,1755915096020,-462.34636034,0.00016438,2]
[380980739,1755915096030,-400.0,0.00016438,2]
[380980740,1755915096041,-400.0,0.00016438,2]
[380980741,1755915096051,-343.73635667,0.00016438,2]
[380980742,1755915096061,-400.0,0.00016438,2]
[380980743,1755915096070,-439.0,0.00016438,2]
[380980744,1755915096080,-400.0,0.00016438,2]
[380980745,1755915096090,-695.75,0.00016438,2]
[380980746,1755915096100,-400.0,0.00016438,2]
[380980747,1755915096110,-400.0,0.00016438,2]
[380980748,1755915096120,-400.0,0.00016438,2]
[380980749,1755915096130,-978.63,0.00016438,2]
[380980750,1755915096140,-400.0,0.00016438,2]
[380980751,1755915096151,-400.0,0.00016438,2]
[380980752,1755915096161,-2075.8,0.00016438,2]
[380980753,1755915096172,-822.82,0.00016438,2]
[380980754,1755915096183,-615.23,0.00016438,2]
[380980755,1755915096194,-400.0,0.00016438,2]
[380980756,1755915096204,-400.0,0.00016438,2]
[380980757,1755915096214,-460.7,0.00016438,2]
[380980758,1755915096224,-400.0,0.00016438,2]
[380980759,1755915096234,-602.09,0.00016438,2]
[380980760,1755915096245,-400.0,0.00016438,2]
[380980761,1755915096257,-400.0,0.00016438,2]
[380980762,1755915096267,-400.0,0.00016438,2]
[380980763,1755915096278,-497.4,0.00016438,2]
[380980764,1755915096291,-400.0,0.00016438,2]
[380980765,1755915096301,-400.0,0.00016438,2]
[380980766,1755915096310,-430.46,0.00016438,2]
[380980767,1755915096320,-400.0,0.00016438,2]
[380980768,1755915096330,-400.0,0.00016438,2]
[380980769,1755915096340,-400.0,0.00016438,2]
[380980770,1755915096350,-400.0,0.00016438,2]
[380980771,1755915096361,-400.0,0.00016438,2]
[380980772,1755915096370,-417.83,0.00016438,2]
[380980773,1755915096391,-400.0,0.00016438,2]
[380980774,1755915096401,-471.86,0.00016438,2]
[380980775,1755915096410,-400.0,0.00016438,2]
[380980776,1755915096420,-400.65904086,0.00016438,2]
[380980777,1755915096430,-400.0,0.00016438,2]
[380980778,1755915096440,-449.24,0.00016438,2]
[380980779,1755915096450,-400.0,0.00016438,2]
[380980780,1755915096460,-400.0,0.00016438,2]
[380980781,1755915096471,-400.0,0.00016438,2]
[380980782,1755915096481,-496.0,0.00016438,2]
[380980783,1755915096491,-625.5,0.00016438,2]
[380980784,1755915096501,-616.04,0.00016438,2]
[380980785,1755915096511,-445.08,0.00016438,2]
[380980786,1755915096520,-400.0,0.00016438,2]
[380980787,1755915096530,-269.08232558,0.00016438,2]
[380980788,1755915096540,-694.25,0.00016438,2]
[380980789,1755915096550,-400.0,0.00016438,2]
[380980790,1755915096560,-400.0,0.00016438,2]
[380980791,1755915096570,-400.0,0.00016438,2]
[380980792,1755915096580,-427.98,0.00016438,2]
[380980793,1755915096590,-408.7,0.00016438,2]
[380980794,1755915096600,-436.96,0.00016438,2]
[380980795,1755915096610,-528.61,0.00016438,2]
[380980796,1755915096620,-400.0,0.00016438,2]
[380980797,1755915096630,-294.20019411,0.00016438,2]
[380980798,1755915096640,-453.46,0.00016438,2]
[380980799,1755915096650,-476.57,0.00016438,2]
[380980800,1755915096660,-400.0,0.00016438,2]
[380980801,1755915096670,-400.0,0.00016438,2]
[380980802,1755915096681,-556.06,0.00016438,2]
[380980803,1755915096691,-775.08,0.00016438,2]
[380980804,1755915096702,-400.0,0.00016438,2]
[380980805,1755915096712,-400.0,0.00016438,2]
[380980806,1755915096731,-400.0,0.00016438,2]
[380980807,1755915096743,-400.0,0.00016438,2]
[380980808,1755915096753,-400.0,0.00016438,2]
[380980809,1755915096763,-400.0,0.00016438,2]
[380980810,1755915096773,-858.86,0.00016438,2]
[380980811,1755915096783,-400.0,0.00016438,2]
[380980812,1755915096794,-400.0,0.00016438,2]
[380980813,1755915096804,-400.0,0.00016438,2]
[380980814,1755915096813,-451.43,0.00016438,2]
[380980815,1755915096825,-547.24,0.00016438,2]
[380980816,1755915096835,-552.9,0.00016438,2]
[380980817,1755915096845,-640.16,0.00016438,2]
[380980818,1755915096855,-418.59,0.00016438,2]
[380980819,1755915096865,-402.86,0.00016438,2]
[380980820,1755915096874,-400.0,0.00016438,2]
[380980821,1755915096884,-508.32,0.00016438,2]
[380980822,1755915096894,-400.0,0.00016438,2]
[380980823,1755915096903,-400.0,0.00016438,2]
[380980824,1755915096913,-352.82834207,0.00016438,2]
[380980825,1755915096922,-400.0,0.00016438,2]
[380980826,1755915096933,-400.0,0.00016438,2]
[380980827,1755915096942,-791.97,0.00016438,2]
[380980828,1755915096952,-400.0,0.00016438,2]
[380980829,1755915096962,-400.0,0.00016438,2]
[380980830,1755915096972,-400.0,0.00016438,2]
[380980831,1755915096981,-726.86,0.00016438,2]
[380980832,1755915096991,-400.0,0.00016438,2]
[380980833,1755915097001,-400.0,0.00016438,2]
[380980834,1755915097011,-400.0,0.00016438,2]
[380980835,1755915097022,-400.0,0.00016438,2]
[380980836,1755915097031,-400.0,0.00016438,2]
[380980837,1755915097041,-400.0,0.00016438,2]
[380980838,1755915097050,-400.0,0.00016438,2]
[380980839,1755915097060,-400.0,0.00016438,2]
[380980840,1755915097069,-400.0,0.00016438,2]
[380980841,1755915097079,-2421.44,0.00016438,2]
[380980842,1755915097088,-741.62,0.00016438,2]
[380980843,1755915097098,-400.0,0.00016438,2]
[380980844,1755915097107,-400.0,0.00016438,2]
[380980845,1755915097117,-400.0,0.00016438,2]
[380980846,1755915097126,-420.62,0.00016438,2]
[380980847,1755915097136,-593.77,0.00016438,2]
[380980848,1755915097146,-400.0,0.00016438,2]
[380980849,1755915097156,-400.0,0.00016438,2]
[380980850,1755915097165,-400.0,0.00016438,2]
[380980851,1755915097175,-986.68,0.00016438,2]
[380980852,1755915097185,-400.0,0.00016438,2]
[380980853,1755915097194,-400.0,0.00016438,2]
[380980854,1755915097204,-400.0,0.00016438,2]
[380980855,1755915097215,-783.79,0.00016438,2]
[380980856,1755915097225,-400.0,0.00016438,2]
[380980857,1755915097236,-400.0,0.00016438,2]
[380980858,1755915097247,-400.0,0.00016438,2]
[380980859,1755915097257,-699.45,0.00016438,2]
[380980860,1755915097267,-400.0,0.00016438,2]
[380980861,1755915097280,-400.0,0.00016438,2]
[380980862,1755915097292,-400.0,0.00016438,2]
[380980863,1755915097302,-448.31,0.00016438,2]
[380980864,1755915097311,-400.0,0.00016438,2]
[380980865,1755915097321,-563.71,0.00016438,2]
[380980866,1755915097332,-598.32,0.00016438,2]
[380980867,1755915097341,-400.0,0.00016438,2]
[380980868,1755915097351,-400.0,0.00016438,2]
[380980869,1755915097366,-400.0,0.00016438,2]
[380980870,1755915097376,-400.0,0.00016438,2]
[380980871,1755915097385,-400.0,0.00016438,2]
[380980872,1755915097395,-408.72,0.00016438,2]
[380980873,1755915097405,-400.0,0.00016438,2]
[380980874,1755915097414,-441.38,0.00016438,2]
[380980875,1755915097424,-400.0,0.00016438,2]
[380980876,1755915097435,-637.68,0.00016438,2]
[380980877,1755915097444,-400.0,0.00016438,2]
[380980878,1755915097454,-400.0,0.00016438,2]
[380980879,1755915097464,-400.0,0.00016438,2]
[380980880,1755915097474,-400.0,0.00016438,2]
[380980881,1755915097483,-400.0,0.00016438,2]
[380980882,1755915097493,-421.34275693,0.00016438,2]
[380980883,1755915097503,-400.0,0.00016438,2]
[380980884,1755915097514,-755.42,0.00016438,2]
[380980885,1755915097524,-400.0,0.00016438,2]
[380980886,1755915097534,-400.0,0.00016438,2]
[380980887,1755915097544,-400.0,0.00016438,2]
[380980888,1755915097554,-400.0,0.00016438,2]
[380980889,1755915097563,-319.04822198,0.00016438,2]
[380980890,1755915097573,-493.66,0.00016438,2]
[380980891,1755915097582,-489.36,0.00016438,2]
[380980892,1755915097593,-1004.4,0.00016438,2]
[380980893,1755915097602,-400.0,0.00016438,2]
[380980894,1755915097613,-400.0,0.00016438,2]
[380980895,1755915097622,-400.0,0.00016438,2]
[380980896,1755915097632,-400.0,0.00016438,2]
[380980897,1755915097642,-400.0,0.00016438,2]
[380980898,1755915097651,-1453.12,0.00016438,2]
[380980899,1755915097662,-331.32654494,0.00016438,2]
[380980900,1755915097672,-400.0,0.00016438,2]
[380980901,1755915097682,-500.0,0.00016438,2]
[380980902,1755915097692,-724.8,0.00016438,2]
[380980903,1755915097703,-666.0,0.00016438,3]
[380980904,1755915097712,-300.0,0.00016438,2]
[380980905,1755915097722,-600.0,0.00016438,2]
[380980906,1755915097731,-600.0,0.00016438,2]
[380980907,1755915097740,-600.0,0.00016438,2]
[380980908,1755915097750,-600.0,0.00016438,2]
[380980909,1755915097760,-600.0,0.00016438,2]
[380980910,1755915097773,-600.0,0.00016438,2]
[380980911,1755915097782,-600.0,0.00016438,2]
[380980912,1755915097792,-600.0,0.00016438,2]
[380980913,1755915097801,-600.0,0.00016438,2]
[380980914,1755915097811,-600.0,0.00016438,2]
[380980915,1755915097820,-600.0,0.00016438,2]
[380980916,1755915097830,-298.26089446,0.00016463,2]
[380980917,1755915097840,-346.92554585,0.00016463,2]
[380980918,1755915097850,-305.66256105,0.00016464,2]
[380980919,1755915097860,-2500.0,0.00016464,2]
[380980920,1755915097870,-240.314885,0.00016464,2]
[380980921,1755915097881,-1085.0,0.0001655,2]
[380980922,1755915097891,-500.0,0.00016563,2]
[380980923,1755915097902,-500.0,0.00016687,2]
[380980924,1755915097911,-669.3,0.00016711,2]
[380980925,1755915097921,-400.0,0.00016711,2]
[380980926,1755915097932,-400.0,0.00016711,2]
[380980927,1755915097942,-403.74,0.00016711,2]
[380980928,1755915097952,-1285.05,0.00016711,2]
[380980929,1755915097961,-852.94,0.00016711,2]
[380980930,1755915097971,-400.0,0.00016711,2]
[380980931,1755915097980,-400.0,0.00016711,2]
[380980932,1755915097990,-540.0,0.00016711,2]
[380980933,1755915098003,-488.67,0.00016711,2]
[380980934,1755915098013,-400.0,0.00016711,2]
[380980935,1755915098023,-400.0,0.00016711,2]
[380980936,1755915098033,-400.0,0.00016711,2]
[380980937,1755915098042,-730.86,0.00016711,2]
[380980938,1755915098052,-400.0,0.00016711,2]
[380980939,1755915098062,-423.7,0.00016711,2]
[380980940,1755915098072,-400.0,0.00016711,2]
[380980941,1755915098081,-400.0,0.00016711,2]
[380980942,1755915098092,-400.0,0.00016711,2]
[380980943,1755915098101,-400.0,0.00016712,2]
[380980944,1755915098111,-400.0,0.00016712,2]
[380980945,1755915098120,-608.46,0.00016712,2]
[380980946,1755915098129,-513.5,0.00016712,2]
[380980947,1755915098139,-400.0,0.00016712,2]
[380980948,1755915098148,-400.0,0.00016712,2]
[380980949,1755915098158,-506.51535463,0.00016712,2]
[380980950,1755915098167,-400.0,0.00016712,2]
[380980951,1755915098177,-429.56,0.00016712,2]
[380980952,1755915098187,-402.63,0.00016712,2]
[380980953,1755915098197,-439.77,0.00016712,2]
[380980954,1755915098207,-400.0,0.00016712,2]
[380980955,1755915098217,-432.83,0.00016712,2]
[380980956,1755915098229,-400.0,0.00016712,2]
[380980957,1755915098243,-526.89,0.00016712,2]
[380980958,1755915098254,-483.75,0.00016712,2]
[380980959,1755915098263,-400.0,0.00016712,2]
[380980960,1755915098274,-400.0,0.00016712,2]
[380980961,1755915098289,-400.0,0.00016712,2]
[380980962,1755915098299,-400.0,0.00016712,2]
[380980963,1755915098309,-400.0,0.00016712,2]
[380980964,1755915098319,-400.0,0.00016712,2]
[380980965,1755915098331,-400.0,0.00016712,2]
[380980966,1755915098342,-539.89,0.00016712,2]
[380980967,1755915098351,-400.0,0.00016712,2]
[380980968,1755915098363,-590.35,0.00016712,2]
[380980969,1755915098373,-400.0,0.00016712,2]
[380980970,1755915098384,-347.70536678,0.00016712,2]
[380980971,1755915098395,-576.58,0.00016712,2]
[380980972,1755915098406,-400.0,0.00016712,2]
[380980973,1755915098416,-400.0,0.00016712,2]
[380980974,1755915098429,-448.1,0.00016712,2]
[380980975,1755915098438,-400.0,0.00016712,2]
[380980976,1755915098451,-400.0,0.00016712,2]
[380980977,1755915098463,-400.0,0.00016712,2]
[380980978,1755915098474,-400.0,0.00016712,2]
[380980979,1755915098486,-400.0,0.00016712,2]
[380980980,1755915098497,-400.0,0.00016712,2]
[380980981,1755915098509,-1072.65,0.00016712,2]
[380980982,1755915098521,-400.0,0.00016712,2]
[380980983,1755915098531,-400.0,0.00016712,2]
[380980984,1755915098543,-400.0,0.00016712,2]
[380980985,1755915098553,-474.35,0.00016712,2]
[380980986,1755915098563,-168.99667376,0.00016712,2]
[380980987,1755915098573,-559.6,0.00016712,2]
[380980988,1755915098583,-462.9,0.00016712,2]
[380980989,1755915098594,-400.0,0.00016712,2]
[380980990,1755915098605,-510.17,0.00016712,2]
[380980991,1755915098615,-491.3,0.00016712,2]
[380980992,1755915098625,-486.38,0.00016712,2]
[380980993,1755915098635,-400.0,0.00016712,2]
[380980994,1755915098644,-445.55,0.00016712,2]
[380980995,1755915098654,-526.33,0.00016712,2]
[380980996,1755915098664,-667.87,0.00016712,2]
[380980997,1755915098674,-463.55,0.00016712,2]
[380980998,1755915098684,-288.78460005,0.00016712,2]
[380980999,1755915098694,-400.0,0.00016712,2]
[380981000,1755915098703,-400.0,0.00016712,2]
[380981001,1755915098713,-400.0,0.00016712,2]